bitfinex/quotes_ETHUSD_20241130
["timestamp","ask_amount","ask_price","bid_price","bid_amount"]
[1732999578991,2.70141,3701.8,3701.1,3.48159]
[1732999579226,2.70142,3701.8,3700.8,3.49549]
[1732999579514,2.70162,3701.5,3700.9,3.0]
[1732999580011,0.05760592,3701.4,3700.9,3.0]
[1732999580704,0.05760592,3701.4,3701.0,3.0]
[1732999580914,0.05760592,3701.4,3701.1,2.70187]
[1732999581201,3.48023,3701.9,3701.4,0.7613]
[1732999582207,0.05773239,3701.8,3701.4,0.7613]
[1732999582814,0.05772779,3701.7,3701.4,0.7613]
[1732999583111,2.70133,3701.9,3701.4,0.7613]
[1732999583269,0.05768942,3701.6,3701.4,0.7613]
[1732999583605,2.70133,3701.9,3701.4,0.7613]
[1732999583817,0.05765105,3701.5,3701.4,0.7613]
[1732999583968,2.70133,3701.9,3701.4,0.7613]
[1732999584312,0.55,3702.1,3701.4,0.7613]
[1732999584477,0.05776616,3701.8,3701.4,0.7613]
[1732999584680,0.55,3701.9,3701.4,0.7613]
[1732999584871,0.05776616,3701.8,3701.4,0.7613]
[1732999589774,2.70152,3701.7,3701.4,0.7613]
[1732999590084,0.05691304,3701.6,3701.1,4.80203126]
[1732999590295,0.05691304,3701.6,3701.2,3.0]
[1732999590774,2.70144,3701.8,3701.2,3.0]
[1732999591598,2.70146,3701.7,3701.2,3.0]
[1732999591867,2.7584114,3701.7,3701.2,3.0]
[1732999592683,3.37811769,3701.7,3701.2,3.0]
[1732999593420,2.7016,3701.5,3700.7,3.7613]
[1732999593636,0.55,3701.3,3700.7,3.7613]
[1732999593775,2.7019,3701.1,3700.7,3.7613]
[1732999593974,2.7019,3701.1,3700.5,0.7613]
[1732999594219,0.05665852,3701.0,3700.6,2.70225]
[1732999594418,0.7711,3701.2,3700.6,2.70225]
[1732999594622,0.0566969,3701.1,3700.6,2.70225]
[1732999594997,0.0566969,3701.1,3700.7,2.70218]
[1732999595197,3.2518,3701.3,3700.7,2.70218]
[1732999595533,0.05673528,3701.2,3700.5,6.46358]
[1732999595714,0.05673528,3701.2,3700.7,3.0]
[1732999597230,2.75856528,3701.2,3700.7,3.0]
[1732999597792,0.05673528,3701.2,3700.7,3.0]
[1732999600726,0.05673528,3701.2,3700.7,2.70217]
[1732999600927,0.05673528,3701.2,3700.9,2.70203]
[1732999601239,2.70147,3701.7,3701.0,0.7573]
[1732999601532,0.60659423,3701.6,3701.0,0.7573]
[1732999601748,0.05659423,3701.6,3701.0,0.7573]
[1732999602036,0.8164,3702.1,3701.4,2.70165]
[1732999602238,0.05672,3702.0,3701.0,0.7573]
[1732999602395,0.25300072,3701.9,3701.3,2.70174]
[1732999602595,2.75801,3702.0,3701.3,2.70174]
[1732999602596,0.05664327,3701.8,3701.3,2.70174]
[1732999602815,2.70129,3702.0,3701.3,2.70174]
[1732999603016,0.93156108,3701.9,3701.3,2.70174]
[1732999603338,0.67856063,3701.9,3701.3,2.70174]
[1732999603720,3.37988063,3701.9,3701.3,2.70174]
[1732999605234,0.05668163,3701.9,3701.4,2.70166]
[1732999605479,1.22120491,3702.1,3700.8,2.72906439]
[1732999605480,0.25298856,3702.0,3701.5,6.4589]
[1732999605626,0.0566992,3701.9,3701.5,6.4589]
[1732999605826,0.2529878,3702.0,3701.5,6.4589]
[1732999606135,0.05671787,3701.9,3701.5,6.4589]
[1732999606508,0.25297102,3702.0,3701.5,6.4589]
[1732999606832,0.05679179,3701.9,3701.5,6.4589]
[1732999607040,0.25296973,3702.0,3701.5,0.7573]
[1732999607196,0.05670884,3701.9,3701.5,0.7573]
[1732999607405,2.95420188,3702.0,3701.5,3.7573]
[1732999607621,0.05675279,3701.9,3701.5,3.7573]
[1732999609311,0.05675279,3701.9,3701.6,2.70152]
[1732999609741,0.8164,3702.1,3701.5,0.7573]
[1732999610048,0.05668342,3701.8,3701.5,3.7573]
[1732999610200,0.0566011,3701.7,3701.5,6.4589]
[1732999610401,0.8164,3702.1,3701.5,6.4589]
[1732999610607,0.8164,3702.1,3701.6,2.70151]
[1732999610842,0.05673085,3702.0,3701.6,2.70151]
[1732999613922,0.05673085,3702.0,3701.7,2.70145]
[1732999614459,0.55,3702.2,3701.7,2.70145]
[1732999614615,0.05683121,3702.1,3701.7,2.70145]
[1732999615367,0.05683121,3702.1,3701.5,0.7573]
[1732999615368,0.05683121,3702.1,3701.6,2.70151]
[1732999619044,0.05683121,3702.1,3701.7,2.70143]
[1732999619625,0.05683121,3702.1,3701.8,2.72835254]
[1732999619822,0.8164,3702.4,3701.8,2.72835254]
[1732999619823,0.8164,3702.4,3702.0,2.70124]
[1732999620065,0.05673692,3702.3,3701.8,2.70134]
[1732999620267,0.05673692,3702.3,3701.9,2.7013]
[1732999622766,0.05673692,3702.3,3702.0,2.70122]
[1732999623271,0.05673692,3702.3,3702.1,2.70115]
[1732999623681,0.05673692,3702.3,3702.2,2.70109]
[1732999624225,0.55,3702.6,3702.2,2.70109]
[1732999624383,0.05688721,3702.3,3702.0,3.51159]
[1732999624707,0.0568594,3702.2,3702.0,3.51159]
[1732999624908,0.7759,3702.7,3702.0,0.8104]
[1732999625215,0.7759,3702.7,3702.2,2.70104]
[1732999626108,0.7759,3702.7,3702.4,2.70094]
[1732999626313,0.47023067,3703.0,3702.5,2.7008]
[1732999626314,1.09453092,3703.0,3702.5,2.7008]
[1732999626470,0.84187996,3703.0,3702.5,2.7008]
[1732999626817,0.84187996,3703.0,3702.7,2.70068]
[1732999627110,0.84187996,3703.0,3702.6,0.02700649]
[1732999627111,0.06597996,3703.0,3702.8,2.70064]
[1732999627467,0.06597996,3703.0,3702.6,0.02700456]
[1732999627668,0.06597996,3703.0,3702.9,2.70058]
[1732999628283,0.06597996,3703.0,3702.8,2.70064]
[1732999628712,0.06597996,3703.0,3702.7,3.0]
[1732999629482,0.06597996,3703.0,3702.2,1.04074509]
[1732999629483,0.06597996,3703.0,3702.3,3.8104]
[1732999629700,0.7759,3702.6,3701.8,2.70131]
[1732999629909,3.048553,3702.5,3701.8,2.70131]
[1732999630138,2.70089,3702.5,3701.8,2.70131]
[1732999630273,2.70089,3702.5,3701.6,3.51191]
[1732999630699,2.70102,3702.3,3701.6,3.51191]
[1732999630924,2.70113,3702.2,3700.8,2.70206]
[1732999631128,0.7975,3702.1,3701.3,2.70173]
[1732999631276,3.55575465,3702.1,3701.3,2.70173]
[1732999631474,3.55575465,3702.1,3701.4,2.70165]
[1732999632385,3.55575465,3702.1,3701.5,3.0]
[1732999633323,2.70126,3702.0,3701.2,3.8299]
[1732999633483,0.05692476,3701.9,3701.5,3.0]
[1732999634218,0.05692476,3701.9,3701.4,2.70166]
[1732999634421,0.05692476,3701.9,3701.2,0.8299]
[1732999634588,0.05692476,3701.9,3701.7,2.70144]
[1732999634780,0.7975,3702.1,3701.7,2.70144]
[1732999634982,0.05678055,3701.8,3701.7,2.70144]
[1732999635177,0.7975,3702.1,3701.7,2.70144]
[1732999635411,0.05678055,3701.8,3701.5,3.0]
[1732999635684,0.7975,3702.1,3701.5,5.70159]
[1732999635836,0.05674219,3701.7,3701.6,2.70153]
[1732999636438,0.7975,3702.1,3701.6,2.70153]
[1732999636638,0.05674219,3701.7,3701.6,2.70153]
[1732999636795,0.7975,3702.1,3701.7,2.70144]
[1732999637199,0.05685726,3702.0,3701.7,2.70144]
[1732999639446,0.05685726,3702.0,3701.8,0.8299]
[1732999639656,0.05685726,3702.0,3701.7,0.540311]
[1732999639809,3.49845,3702.4,3701.8,2.70137]
[1732999640009,0.05684913,3701.9,3701.8,2.70137]
[1732999640320,0.0567173,3701.9,3701.8,2.70137]
[1732999640539,0.7975,3702.4,3701.5,0.8299]
[1732999640725,0.7975,3702.4,3701.9,2.70125]
[1732999640938,0.7975,3702.4,3702.1,3.0]
[1732999642161,0.7975,3702.4,3701.9,5.70131]
[1732999642456,0.7975,3702.4,3702.0,5.70121]
[1732999642753,0.7975,3702.4,3702.0,6.541469]
[1732999643345,0.05683736,3702.3,3702.0,6.541469]
[1732999643659,0.05683736,3702.3,3702.0,0.840259]
[1732999643823,0.05683736,3702.3,3702.1,2.70115]
[1732999644155,0.25270436,3702.8,3702.2,3.48629952]
[1732999644365,1.06330436,3702.9,3702.2,3.45929]
[1732999644508,0.05701923,3702.7,3702.2,3.45929]
[1732999644865,0.05701923,3702.7,3702.3,2.70102]
[1732999645046,0.25268709,3702.9,3702.4,0.345922]
[1732999645209,0.05617817,3702.6,3702.5,5.70087]
[1732999645408,0.25268709,3702.9,3702.6,2.70078]
[1732999645912,0.05613769,3702.8,3702.7,2.70073]
[1732999648520,0.25268709,3702.9,3702.7,2.70073]
[1732999648852,0.05604844,3702.8,3702.7,2.70073]
[1732999649439,0.05604844,3702.8,3702.7,4.346387]
[1732999649829,0.25268709,3702.9,3702.8,2.70065]
[1732999650227,0.25268709,3702.9,3702.8,5.70065]
[1732999652092,0.3089355,3702.9,3702.8,5.72765373]
[1732999652455,0.05624841,3702.9,3702.8,5.72765373]
[1732999653350,0.05624841,3702.9,3702.8,6.62403837]
[1732999653648,0.06597996,3703.0,3702.9,5.70058]
[1732999653875,0.12228994,3703.0,3702.9,5.70058]
[1732999654829,0.12228994,3703.0,3702.7,0.8055]
[1732999654830,0.12228994,3703.0,3702.7,5.70073]
[1732999655503,0.12228994,3703.0,3702.0,0.7884]
[1732999655803,0.12228994,3703.0,3702.7,2.70071]
[1732999657295,0.12228994,3703.0,3702.4,3.0]
[1732999658713,0.12228994,3703.0,3702.2,2.70107]
[1732999658907,0.12228994,3703.0,3702.3,3.0]
[1732999659822,2.82279994,3703.0,3702.1,3.0]
[1732999660119,2.82279994,3703.0,3702.2,0.75298812]
[1732999660324,2.70071,3702.8,3702.0,0.7884]
[1732999660528,2.70087,3702.5,3701.7,3.8208]
[1732999660823,2.70102,3702.3,3701.5,0.8208]
[1732999661195,0.0557996,3702.2,3701.5,0.8208]
[1732999661617,0.0557996,3702.2,3701.5,3.52239]
[1732999661901,2.70096,3702.4,3701.6,3.72644312]
[1732999662114,0.05583799,3702.3,3701.6,3.72644312]
[1732999662633,0.7744,3702.1,3701.6,0.72644312]
[1732999662992,0.05572281,3702.0,3701.6,3.72644312]
[1732999663730,0.05572281,3702.0,3701.6,0.72644312]
[1732999665224,0.05572281,3702.0,3701.6,3.72644312]
[1732999665382,3.2692407,3702.1,3701.2,0.8208]
[1732999665583,2.70146,3701.7,3701.0,0.8208]
[1732999665815,2.70155,3701.6,3701.0,0.8208]
[1732999666000,2.70155,3701.6,3701.0,0.352288]
[1732999666001,2.75519631,3701.6,3701.0,0.352288]
[1732999667499,2.75519631,3701.6,3701.0,3.352288]
[1732999667942,2.75519631,3701.6,3701.0,0.352288]
[1732999668143,2.75519631,3701.6,3701.0,3.352288]
[1732999668307,3.53239631,3701.6,3701.0,3.352288]
[1732999668644,2.70166,3701.5,3700.8,0.8208]
[1732999668946,2.70179,3701.3,3700.8,0.8208]
[1732999669320,0.05336403,3701.2,3700.8,0.8208]
[1732999669517,2.70179,3701.3,3700.5,0.8053]
[1732999669722,0.7772,3701.0,3700.5,0.8053]
[1732999669920,0.7772,3701.0,3700.6,0.650777]
[1732999670102,0.05321147,3700.9,3700.6,0.650777]
[1732999670308,0.05321147,3700.9,3700.6,3.650777]
[1732999670503,0.7772,3701.0,3700.6,3.650777]
[1732999670741,0.05317305,3700.8,3700.6,0.650777]
[1732999671009,0.7772,3701.0,3700.7,0.4456077]
[1732999673821,2.70186,3701.2,3700.7,0.4456077]
[1732999674149,0.0533483,3701.1,3700.7,0.4456077]
[1732999675505,2.7019,3701.1,3700.7,0.4456077]
[1732999675755,0.05330991,3701.0,3700.7,0.4456077]
[1732999676311,0.05330991,3701.0,3700.8,0.76040047]
[1732999682468,0.7998,3701.3,3700.8,0.76040047]
[1732999682469,3.50158,3701.3,3700.8,0.76040047]
[1732999682629,0.05302565,3700.9,3700.8,0.76040047]
[1732999682825,3.50158,3701.3,3700.8,0.76040047]
[1732999683037,0.05301825,3700.9,3700.8,0.76040047]
[1732999683238,2.70182,3701.2,3700.8,0.76040047]
[1732999683466,0.05301825,3700.9,3700.8,0.76040047]
[1732999683621,2.70182,3701.2,3700.8,0.76040047]
[1732999683826,0.05226149,3700.9,3700.8,0.76040047]
[1732999684021,2.70182,3701.2,3700.8,0.76040047]
[1732999684524,0.05233831,3701.1,3700.8,0.76040047]
[1732999685267,0.05233831,3701.1,3700.8,1.80143439]
[1732999685468,0.05233831,3701.1,3700.9,3.7340254]
[1732999685674,0.7998,3701.3,3700.9,3.7340254]
[1732999685831,0.05128323,3701.0,3700.9,3.7340254]
[1732999686030,0.7998,3701.3,3700.9,3.7340254]
[1732999686331,2.70155,3701.6,3701.0,1.04103392]
[1732999686562,0.0514606,3701.5,3701.1,0.7941]
[1732999687166,0.0514606,3701.5,3701.1,3.49597]
[1732999687476,0.7998,3701.7,3701.1,3.49597]
[1732999687642,0.05130068,3701.4,3701.3,4.04103392]
[1732999687843,2.70142,3701.8,3701.3,1.04103392]
[1732999688073,0.05131968,3701.4,3701.3,1.04103392]
[1732999688378,0.85111968,3701.4,3701.3,0.84053287]
[1732999688669,0.85111968,3701.4,3700.7,3.49627]
[1732999688670,3.50148,3701.4,3700.8,3.0]
[1732999688834,0.85111968,3701.4,3700.8,5.70211]
[1732999689229,3.55282968,3701.4,3700.8,5.70211]
[1732999689428,3.55282968,3701.4,3700.7,1.83513392]
[1732999689429,2.70175,3701.3,3700.7,1.83513392]
[1732999689671,2.70175,3701.3,3700.8,3.0]
[1732999689880,0.05128088,3701.2,3700.8,3.0]
[1732999690028,2.75311088,3701.2,3700.7,5.06500031]
[1732999690227,2.70183,3701.2,3700.7,5.06500031]
[1732999690465,0.05124247,3701.1,3700.7,5.06500031]
[1732999690666,0.05124247,3701.1,3700.8,3.77672103]
[1732999690838,2.70175,3701.3,3700.8,3.77672103]
[1732999691038,0.05120406,3701.0,3700.7,5.06500031]
[1732999691274,2.70175,3701.3,3700.7,5.06500031]
[1732999691429,0.05116565,3700.9,3700.7,5.06500031]
[1732999691629,2.70175,3701.3,3700.7,5.06500031]
[1732999692158,0.05128088,3701.2,3700.7,5.06500031]
[1732999692356,0.05128088,3701.2,3700.5,3.0]
[1732999692557,0.7998,3700.9,3700.5,3.0]
[1732999692885,0.05109449,3700.8,3700.5,3.0]
[1732999693038,0.05109449,3700.8,3700.5,3.67434339]
[1732999695287,0.05109449,3700.8,3700.5,0.67434339]
[1732999696083,0.05109449,3700.8,3700.2,3.0]
[1732999696287,2.70221,3700.7,3700.2,3.0]
[1732999696500,0.7998,3700.9,3700.2,3.0]
[1732999696641,0.7998,3700.9,3699.9,3.49686]
[1732999696642,2.70234,3700.5,3699.9,1.83513392]
[1732999697153,0.05091017,3700.4,3699.9,1.83513392]
[1732999697345,0.05091017,3700.4,3699.9,4.99168731]
[1732999697576,0.7998,3700.3,3699.9,1.49483731]
[1732999697784,0.85067175,3700.3,3699.9,1.49483731]
[1732999698086,0.85067175,3700.3,3699.9,4.49483731]
[1732999698598,0.85067175,3700.3,3699.9,6.74380392]
[1732999700903,0.85067175,3700.3,3699.9,1.04103392]
[1732999701980,0.85067175,3700.3,3700.1,1.04103392]
[1732999703773,0.85067175,3700.3,3700.1,6.74363392]
[1732999703962,0.05087175,3700.3,3700.1,6.74363392]
[1732999704162,0.7998,3700.6,3700.1,6.74363392]
[1732999704375,0.0507818,3700.5,3700.1,6.74363392]
[1732999704574,0.0507818,3700.5,3700.1,1.04103392]
[1732999705303,0.0507818,3700.5,3700.1,4.04103392]
[1732999706003,0.0507818,3700.5,3700.1,1.04103392]
[1732999708105,0.0507818,3700.5,3700.2,2.70249]
[1732999710767,0.0507818,3700.5,3700.1,1.04103392]
[1732999710967,0.0507818,3700.5,3700.1,4.04103392]
[1732999711407,0.0507818,3700.5,3700.1,3.74365392]
[1732999716884,0.0507818,3700.5,3700.2,2.70254]
[1732999718771,0.0507818,3700.5,3700.1,1.04103392]
[1732999718977,0.0507818,3700.5,3700.1,3.0]
[1732999720795,0.0507818,3700.5,3700.2,2.70255]
[1732999724211,0.0507818,3700.5,3700.0,5.70269]
[1732999724513,0.0507818,3700.5,3699.8,6.74381392]
[1732999725413,2.7531318,3700.5,3699.8,6.74381392]
[1732999725588,0.7833,3700.1,3699.3,1.04103392]
[1732999725854,0.7833,3700.1,3699.7,2.70287]
[1732999726201,0.7833,3700.1,3699.6,1.04103392]
[1732999727995,3.48594,3700.1,3699.6,1.01103392]
[1732999729308,4.104776,3700.1,3699.6,1.01103392]
[1732999730326,3.48594,3700.1,3699.6,1.01103392]
[1732999731192,3.48594,3700.1,3699.5,2.70301]
[1732999732434,0.7833,3700.1,3699.6,2.70298]
[1732999733133,0.7833,3700.1,3699.6,3.74401392]
[1732999734003,0.7833,3700.1,3699.6,3.69401392]
[1732999734839,0.7833,3700.1,3699.6,2.65298]
[1732999735412,3.48594,3700.1,3699.4,3.74416392]
[1732999735718,3.48594,3700.1,3699.5,2.70306]
[1732999737363,3.48594,3700.1,3699.4,3.74416392]
[1732999738561,2.70285,3699.8,3699.3,3.0]
[1732999738857,0.55,3699.7,3699.3,3.0]
[1732999739057,0.55,3699.7,3699.2,1.04103392]
[1732999739721,0.55,3699.8,3699.3,3.0]
[1732999740267,0.55,3699.8,3699.3,2.70316]
[1732999740448,0.55,3699.8,3699.4,1.04103392]
[1732999741976,0.55,3699.8,3699.4,3.74413392]
[1732999742538,0.55,3699.8,3699.5,2.70305]
[1732999742935,1.12930429,3700.8,3699.6,1.04103392]
[1732999743148,0.25278201,3700.7,3700.3,1.04103392]
[1732999743350,0.25278201,3700.7,3700.2,2.70255]
[1732999743663,0.04841147,3700.6,3700.2,2.70255]
[1732999744164,0.04837099,3700.5,3700.2,2.70255]
[1732999744521,0.8000442,3700.7,3700.2,2.70255]
[1732999744722,0.04831841,3700.4,3700.2,2.70255]
[1732999744921,0.55,3700.6,3700.2,2.70255]
[1732999745565,0.04835679,3700.5,3700.2,2.70255]
[1732999747063,0.04835679,3700.5,3700.1,1.04103392]
[1732999747385,0.04835679,3700.5,3700.0,2.70264]
[1732999747857,0.7853,3700.4,3699.9,2.70276]
[1732999748406,0.04829317,3700.3,3699.9,2.70276]
[1732999748733,0.04829317,3700.3,3699.8,2.70279]
[1732999749060,0.04829317,3700.3,3699.9,2.70276]
[1732999751972,0.04829317,3700.3,3699.7,3.74394392]
[1732999752179,3.48773,3700.4,3699.7,3.74394392]
[1732999752482,1.56100537,3700.4,3699.7,1.04103392]
[1732999752683,2.70249,3700.3,3699.7,3.74395392]
[1732999753038,0.55,3700.2,3699.5,3.0]
[1732999753278,3.25275,3700.0,3699.3,2.7032]
[1732999753655,0.55,3700.0,3699.2,1.04103392]
[1732999754058,0.70884054,3700.0,3699.2,1.04103392]
[1732999754257,2.70285,3699.8,3699.3,3.0]
[1732999754473,0.7853,3699.7,3699.3,3.0]
[1732999754672,0.7853,3699.7,3699.2,1.04103392]
[1732999754886,0.7853,3699.7,3699.4,2.70313]
[1732999755450,0.7853,3699.7,3699.3,3.0]
[1732999756653,0.7853,3699.7,3699.3,2.7032]
[1732999757196,0.7853,3699.7,3699.4,2.70313]
[1732999757547,0.7853,3699.7,3699.2,3.74425392]
[1732999757769,0.7853,3699.7,3699.3,2.70319]
[1732999758680,0.7853,3699.7,3699.3,2.65319]
[1732999760550,0.7853,3699.7,3699.4,2.70312]
[1732999760946,0.55,3699.6,3699.3,2.7032]
[1732999762090,0.7631,3700.3,3699.5,2.70304]
[1732999762384,0.7631,3700.3,3699.7,2.7029]
[1732999762888,0.7631,3700.3,3700.0,3.74371392]
[1732999763052,0.7631,3700.3,3700.0,2.70268]
[1732999763248,0.04618697,3700.2,3700.0,2.70268]
[1732999763584,0.04618697,3700.2,3700.1,2.70262]
[1732999763774,0.04618697,3700.2,3699.9,2.70273]
[1732999765752,0.04618697,3700.2,3700.1,2.70262]
[1732999766486,0.55,3700.6,3700.1,2.70262]
[1732999766648,0.7631,3700.7,3700.3,1.04103392]
[1732999766850,0.7631,3700.7,3700.5,3.74336392]
[1732999767051,0.7631,3700.7,3700.3,3.74347392]
[1732999767481,0.7631,3700.7,3700.3,1.04103392]
[1732999767700,0.7631,3700.7,3700.4,2.70239]
[1732999769720,0.04641264,3700.6,3700.4,2.70239]
[1732999771090,0.04641264,3700.6,3700.5,2.70233]
[1732999771286,0.04641264,3700.6,3700.5,3.74336392]
[1732999771708,0.25293313,3701.0,3700.5,3.74336392]
[1732999771893,0.25293313,3701.1,3700.5,3.74336392]
[1732999772094,0.04629327,3700.9,3700.5,3.74336392]
[1732999772294,0.04633165,3701.0,3700.5,3.74336392]
[1732999772494,0.04625489,3700.8,3700.5,3.74336392]
[1732999772735,0.04629327,3700.9,3700.7,2.70213]
[1732999773134,0.25293313,3701.1,3700.7,2.70213]
[1732999773298,0.04625489,3700.8,3700.7,2.70213]
[1732999773491,0.25282846,3701.1,3700.7,2.70213]
[1732999773827,0.7715,3701.2,3701.1,2.70189]
[1732999774027,0.04643873,3701.2,3701.1,2.70189]
[1732999774739,0.04650023,3701.2,3701.1,2.70189]
[1732999774939,1.3215,3701.5,3701.2,2.70182]
[1732999775141,1.723789,3701.5,3701.2,2.70182]
[1732999775503,0.7715,3701.9,3701.4,2.70168]
[1732999775839,0.7715,3701.9,3701.2,2.70181]
[1732999776001,0.7715,3701.9,3701.4,2.70162]
[1732999776423,0.25275787,3701.8,3701.4,2.70162]
[1732999777045,0.7715,3701.9,3701.5,2.70158]
[1732999777046,0.04670137,3701.7,3701.5,2.70158]
[1732999777348,0.55,3701.8,3701.5,2.70158]
[1732999777507,0.04666301,3701.6,3701.5,2.70158]
[1732999778041,0.55,3701.8,3701.5,2.70158]
[1732999778205,0.04670137,3701.7,3701.5,2.70158]
[1732999778404,0.55,3701.8,3701.5,2.70158]
[1732999778606,0.04670137,3701.7,3701.5,2.70158]
[1732999778927,0.55,3701.8,3701.5,2.70158]
[1732999779102,0.04666301,3701.6,3701.5,2.70158]
[1732999779453,0.04666301,3701.6,3701.1,1.04103392]
[1732999779745,0.55,3702.1,3701.9,2.70131]
[1732999780038,0.55,3702.1,3701.9,2.70124]
[1732999780251,0.04685145,3702.0,3701.9,2.70124]
[1732999781727,0.04685145,3702.0,3701.9,3.74227392]
[1732999781932,0.04685145,3702.0,3701.9,7.54437392]
[1732999782105,1.50839026,3702.6,3702.4,2.70094]
[1732999782546,0.04707924,3702.5,3702.4,2.70094]
[1732999782908,0.59707924,3702.5,3702.4,2.70094]
[1732999783109,0.55,3702.5,3702.4,2.70094]
[1732999783415,0.59707924,3702.5,3702.4,2.70094]
[1732999784644,0.04707924,3702.5,3702.4,2.70094]
[1732999784948,1.3498,3702.8,3702.7,2.70073]
[1732999785250,1.39710133,3702.8,3702.7,2.70073]
[1732999786023,1.39710133,3702.8,3702.6,2.70075]
[1732999786223,0.06597996,3703.0,3702.9,2.70058]
[1732999787648,0.11315435,3703.0,3702.9,2.70058]
[1732999789738,0.06597996,3703.0,3702.9,2.70058]
[1732999790749,0.06597996,3703.0,3702.9,5.70058]
[1732999793658,0.06597996,3703.0,3702.9,6.49298]
[1732999793812,0.06597996,3703.0,3702.9,7.412351]
[1732999794919,0.06597996,3703.0,3702.9,8.45338492]
[1732999795551,0.84527996,3703.0,3702.0,0.7924]
[1732999795727,0.84527996,3703.0,3702.5,3.0]
[1732999795926,0.04730448,3702.9,3702.5,3.0]
[1732999796127,0.84527996,3703.0,3702.5,3.0]
[1732999796449,0.04730448,3702.9,3702.5,3.0]
[1732999797321,0.04730448,3702.9,3702.3,5.70101]
[1732999797519,0.04730448,3702.9,3702.5,3.0]
[1732999798147,0.04730448,3702.9,3702.8,2.70065]
[1732999798353,0.04730448,3702.9,3702.8,5.70065]
[1732999798659,0.06597996,3703.0,3702.9,5.70058]
[1732999798865,0.06597996,3703.0,3702.9,6.49298]
[1732999799060,0.06597996,3703.0,3702.9,7.51644639]
[1732999804944,0.7539,3704.6,3704.1,2.69969]
[1732999805467,0.04602495,3704.5,3704.1,2.69969]
[1732999805670,0.04602495,3704.5,3704.2,2.69961]
[1732999805868,0.04602495,3704.5,3704.0,2.69974]
[1732999806079,0.04602495,3704.5,3704.1,3.0]
[1732999806749,0.04602495,3704.5,3704.1,2.6997]
[1732999807372,0.04602495,3704.5,3704.0,2.69977]
[1732999807572,2.74544495,3704.5,3703.9,3.0]
[1732999807853,3.24951,3704.4,3703.9,3.0]
[1732999808204,0.04599703,3704.3,3703.7,5.69998]
[1732999808547,0.04599703,3704.3,3703.7,3.0]
[1732999808746,0.04599703,3704.3,3703.9,3.0]
[1732999809050,0.04599703,3704.3,3704.1,3.0]
[1732999809251,0.7539,3704.6,3704.2,2.69963]
[1732999809452,0.04605036,3704.5,3704.2,2.69963]
[1732999809867,0.04605036,3704.5,3704.4,5.69949]
[1732999810071,0.1586105,3704.9,3704.5,2.69938]
[1732999810289,0.04616528,3704.8,3704.5,2.69938]
[1732999810659,0.04616528,3704.8,3704.6,5.69932]
[1732999810862,0.04616528,3704.8,3704.7,2.69927]
[1732999811150,0.1586105,3704.9,3704.8,2.6992]
[1732999811462,0.20479634,3704.9,3704.8,2.6992]
[1732999811788,0.20479634,3704.9,3704.8,5.6992]
[1732999811992,0.20479634,3704.9,3704.8,6.621494]
[1732999813088,0.1586105,3704.9,3704.8,6.621494]
[1732999813320,0.20479634,3704.9,3704.8,6.621494]
[1732999815000,0.1586105,3704.9,3704.8,6.621494]
[1732999817111,0.1586105,3704.9,3704.8,7.445894]
[1732999819908,0.1586105,3704.9,3704.8,9.75004898]
[1732999824806,5e-07,3704.9,3704.8,9.75004898]
[1732999825912,0.52933934,3706.8,3706.4,2.698]
[1732999826267,7.70709007,3706.5,3706.2,0.8115]
[1732999826470,7.70709007,3706.5,3706.4,5.69803]
[1732999826908,7.70709007,3706.5,3706.4,3.0]
[1732999827119,7.70709007,3706.5,3706.4,5.69803]
[1732999827371,7.70709007,3706.5,3706.4,6.50953]
[1732999827477,7.70709007,3706.5,3706.4,7.430301]
[1732999828024,7.70709007,3706.5,3706.3,5.6981]
[1732999828375,7.70709007,3706.5,3706.4,5.69803]
[1732999829476,7.75227814,3706.5,3706.4,5.69803]
[1732999830623,7.75227814,3706.5,3706.3,5.69808]
[1732999831045,7.75227814,3706.5,3706.4,5.69803]
[1732999831200,7.75227814,3706.5,3706.4,3.0]
[1732999831375,7.75227814,3706.5,3706.4,2.69803]
[1732999831580,7.75227814,3706.5,3706.4,5.69803]
[1732999833126,7.83138078,3706.5,3706.4,5.69803]
[1732999834180,7.83138078,3706.5,3706.4,6.7680655]
[1732999834383,7.83138078,3706.5,3706.4,7.5333655]
[1732999834629,7.75227814,3706.5,3706.4,7.5333655]
[1732999834921,7.83136438,3706.5,3706.4,7.5333655]
[1732999835922,7.83136438,3706.5,3706.4,9.83752048]
[1732999836127,7.83136438,3706.5,3706.4,7.5333655]
[1732999836426,5.13340438,3706.5,3706.4,9.93752048]
[1732999837700,3.78442438,3706.5,3706.4,9.93752048]
[1732999840781,3.78442438,3706.5,3706.4,7.5333655]
[1732999842333,3.78442438,3706.5,3706.4,9.83752048]
[1732999842645,3.78442438,3706.5,3706.4,7.5333655]
[1732999843134,0.7998,3707.8,3707.4,2.69728]
[1732999843288,3.48807,3708.5,3707.5,5.00136498]
[1732999843488,0.7915,3708.5,3707.6,3.0]
[1732999843723,2.69664,3708.4,3707.6,3.0]
[1732999843886,0.25119425,3708.4,3707.6,3.0]
[1732999844230,2.69667,3708.3,3707.6,3.0]
[1732999844429,2.69667,3708.3,3707.5,2.30415498]
[1732999844799,2.69667,3708.3,3707.5,5.30415498]
[1732999845026,2.69667,3708.3,3707.6,3.0]
[1732999845523,0.07560925,3708.2,3707.6,3.0]
[1732999846603,0.07560925,3708.2,3707.7,5.69708]
[1732999847002,2.94784805,3708.4,3707.7,5.69708]
[1732999847529,0.07566085,3708.3,3707.8,2.697]
[1732999847824,0.07566085,3708.3,3707.6,3.0]
[1732999848002,0.07566085,3708.3,3707.8,3.0]
[1732999848202,0.07566085,3708.3,3708.2,2.69672]
[1732999848415,0.07566085,3708.3,3708.2,5.69672]
[1732999848727,0.1586105,3708.6,3708.2,5.69672]
[1732999848728,0.1586105,3708.6,3708.4,2.69656]
[1732999848925,0.1586105,3708.6,3708.5,3.0]
[1732999849086,0.1586105,3708.6,3708.5,5.6965]
[1732999849434,0.22701807,3708.6,3708.5,5.6965]
[1732999849729,0.1586105,3708.6,3708.5,7.55462018]
[1732999850688,0.1586105,3708.6,3708.5,5.6965]